bitfinex-derivatives/quotes_ETHF0:USTF0_20250923
["timestamp","ask_amount","ask_price","bid_price","bid_amount"]
[1758618848931,0.6954,4223.9,4223.8,0.96205]
[1758618849335,0.4153,4223.9,4223.8,1.18065]
[1758618850536,0.4153,4223.9,4223.8,0.74335]
[1758618850740,0.6954,4223.9,4223.8,0.5362]
[1758618850934,0.4153,4223.7,4223.6,0.3175]
[1758618851135,0.6954,4223.7,4223.6,0.3175]
[1758618851339,0.6954,4223.7,4223.6,0.5362]
[1758618851537,0.70593,4224.1,4223.5,0.126]
[1758618851734,1.12123,4224.1,4224.0,0.5362]
[1758618852038,0.6954,4224.1,4224.0,0.6622]
[1758618853443,2.12834,4225.8,4224.0,0.6622]
[1758618853444,0.4153,4224.6,4224.5,0.5633]
[1758618853649,0.4153,4224.6,4224.5,0.8808]
[1758618853835,0.89450344,4224.6,4224.5,0.8808]
[1758618856047,0.47920344,4224.6,4224.5,0.8808]
[1758618856647,0.4153,4225.1,4225.0,0.8808]
[1758618857147,0.4153,4225.1,4225.0,1.30654]
[1758618857338,0.47900779,4225.1,4225.0,1.30654]
[1758618857945,0.91200779,4225.1,4225.0,1.30654]
[1758618858738,1.19200779,4225.1,4225.0,1.30654]
[1758618859544,0.91200779,4225.1,4225.0,1.30654]
[1758618863046,1.19200779,4225.1,4225.0,1.30654]
[1758618863250,1.19200779,4225.1,4225.0,1.08794]
[1758618863954,0.713,4224.7,4224.6,0.72978]
[1758618864143,1.19200779,4224.7,4224.6,0.304]
[1758618867551,0.42578,4224.6,4224.5,0.1258]
[1758618867860,1.33778779,4224.6,4224.5,0.8597]
[1758618868053,1.61778779,4224.6,4224.5,0.8597]
[1758618868650,1.61778779,4224.6,4224.5,0.6393]
[1758618869045,1.61778779,4224.6,4224.5,0.304]
[1758618871051,1.61778779,4224.6,4224.5,0.646]
[1758618873248,0.7048,4224.2,4224.1,0.97103]
[1758618873454,1.18380779,4224.2,4224.1,0.75853]
[1758618873655,0.90350779,4224.2,4224.1,0.7494]
[1758618876352,0.69190779,4224.2,4224.1,0.7494]
[1758618877356,1.18380779,4224.2,4224.1,0.7494]
[1758618878154,1.18380779,4224.2,4224.1,0.5452]
[1758618881960,0.90350779,4224.2,4224.1,0.7494]
[1758618885560,1.18380779,4224.2,4224.1,0.7494]
[1758618887362,1.22501973,4224.2,4224.1,0.7494]
[1758618891366,1.22501973,4224.2,4224.1,0.5452]
[1758618893560,1.22501973,4224.2,4224.1,0.7494]
[1758618894662,0.94471973,4224.2,4224.1,0.7494]
[1758618894865,1.22501973,4224.2,4224.1,0.7494]
[1758618895765,0.94471973,4224.2,4224.1,0.7494]
[1758618895972,1.22501973,4224.2,4224.1,0.7494]
[1758618899875,0.94471973,4224.2,4224.1,0.7494]
[1758618900076,1.22501973,4224.2,4224.1,0.7494]
[1758618901476,1.01211973,4224.2,4223.6,0.42587]
[1758618901679,1.01211973,4224.2,4223.5,0.126]
[1758618901680,0.7155,4223.4,4223.3,0.3315]
[1758618901878,1.19450779,4223.4,4223.3,0.3315]
[1758618902177,1.19450779,4223.4,4223.3,0.5449]
[1758618902382,1.19450779,4223.4,4223.3,0.7569]
[1758618902985,0.91440779,4223.4,4223.3,0.7569]
[1758618903588,0.47900779,4223.4,4223.3,0.7569]
[1758618903776,0.7155,4224.0,4223.9,0.5449]
[1758618904089,0.91486297,4224.0,4223.9,0.7569]
[1758618904290,0.47946297,4224.0,4223.9,0.7569]
[1758618906090,0.69216297,4224.0,4223.9,0.7569]
[1758618906488,0.2127,4223.7,4223.6,0.3315]
[1758618906686,0.2227,4223.3,4223.2,0.42591]
[1758618906890,0.7155,4223.3,4223.2,0.97081]
[1758618907090,1.19496297,4223.3,4223.2,0.97081]
[1758618907290,1.19496297,4223.3,4223.2,1.18281]
[1758618907291,0.91486297,4223.3,4223.2,1.18281]
[1758618908092,1.19496297,4223.3,4223.2,1.18281]
[1758618908499,1.62087297,4223.3,4223.2,0.5449]
[1758618908696,0.4354,4223.1,4223.0,0.4573]
[1758618908893,1.19496297,4223.1,4223.0,0.3315]
[1758618909907,1.19496297,4223.1,4223.0,0.6683]
[1758618910600,1.19496297,4223.1,4222.0,0.5488]
[1758618910601,0.4354,4222.1,4222.0,0.5488]
[1758618910898,0.2127,4222.1,4222.0,0.5488]
[1758618911092,0.47946297,4222.1,4222.0,0.5488]
[1758618911287,0.2127,4223.0,4222.9,0.63934]
[1758618911490,0.2127,4223.0,4222.9,0.4254]
[1758618911700,0.91280213,4223.0,4222.9,0.85135]
[1758618911897,1.24330213,4223.0,4222.9,0.63935]
[1758618912297,1.24330213,4223.0,4222.9,0.85135]
[1758618912795,1.24330213,4223.0,4222.9,1.18285]
[1758618913096,0.3305,4223.9,4223.8,0.2134]
[1758618913292,0.7659,4223.9,4223.8,0.7569]
[1758618914193,0.4354,4223.9,4223.8,0.7569]
[1758618914397,0.37171194,4224.2,4223.8,0.7569]
[1758618914597,0.80711194,4224.2,4224.1,1.18273]
[1758618915394,0.80711194,4224.2,4224.1,0.5449]
[1758618916297,0.80711194,4224.2,4224.1,0.3315]
[1758618916600,0.47661194,4224.2,4223.8,0.42585]
[1758618916802,0.7659,4224.0,4223.9,0.7569]
[1758618917192,0.04121194,4224.2,4224.1,0.4254]
[1758618917393,0.04121194,4224.2,4224.1,0.7569]
[1758618921307,0.04121194,4224.2,4224.1,4.99363]
[1758618921506,1.17773,4225.1,4225.0,0.751]
[1758618921706,0.752,4225.1,4225.0,0.8847]
[1758618923206,0.79320472,4225.1,4225.0,0.8847]
[1758618925205,1.26944365,4225.1,4225.0,0.8847]
[1758618926599,1.26944365,4225.1,4225.0,0.751]
[1758618927094,1.26944365,4225.1,4225.0,0.5373]
[1758618931907,4.47724365,4225.1,4225.0,0.5373]
[1758618933410,1.16338,4224.6,4224.5,0.8661]
[1758618933611,1.63961893,4224.6,4224.5,0.8661]
[1758618933913,0.7376,4224.2,4224.1,3.7341]
[1758618934207,1.21383893,4224.2,4224.1,3.9402]
[1758618935400,0.89953893,4224.2,4224.1,3.9402]
[1758618937809,0.89953893,4224.2,4224.1,0.7324]
[1758618938411,1.21383893,4224.2,4224.1,0.7324]
[1758618939009,1.21383893,4224.2,4224.1,0.5263]
[1758618939414,1.21383893,4224.2,4223.5,0.5381]
[1758618939415,0.63568,4223.6,4223.5,0.5381]
[1758618939606,1.63996406,4223.6,4223.5,0.4147]
[1758618939914,1.63996406,4223.6,4223.5,0.2086]
[1758618940111,1.63996406,4223.6,4223.5,0.5263]
[1758618940607,0.42593,4223.1,4223.0,3.3415]
[1758618940908,1.16353,4223.1,4223.0,0.8661]
[1758618941112,1.64001668,4223.1,4223.0,0.8661]
[1758618941302,0.89978668,4223.1,4223.0,0.8661]
[1758618945421,1.21408668,4223.1,4223.0,0.5263]
[1758618945918,1.21408668,4223.1,4223.0,0.3177]
[1758618946117,1.21408668,4223.1,4222.6,0.7324]
[1758618946118,0.2135,4222.7,4222.6,0.7324]
[1758618946424,1.21408668,4222.7,4222.6,0.7324]
[1758618946622,1.64005668,4222.7,4222.6,0.7324]
[1758618947710,0.426,4222.4,4222.0,3.76644]
[1758618947916,0.4233,4222.1,4222.0,0.3177]
[1758618948117,0.89966326,4222.1,4222.0,0.3177]
[1758618948316,0.2098,4221.6,4221.5,0.865]
[1758618948518,0.7376,4221.6,4221.5,0.865]
[1758618948924,0.4233,4221.6,4221.5,0.865]
[1758618949428,0.2098,4221.6,4221.5,0.865]
[1758618953218,0.63584,4222.0,4221.9,0.4147]
[1758618953414,0.3143,4222.7,4222.5,0.1326]
[1758618953628,0.95007,4222.7,4222.6,0.7324]
[1758618953820,1.63846048,4222.7,4222.6,0.7324]
[1758618954920,1.21249048,4222.7,4222.6,0.7324]
[1758618955333,0.89819048,4222.7,4222.6,0.7324]
[1758618955523,0.2098,4222.7,4222.6,0.7324]
[1758618955826,0.7376,4223.0,4222.9,0.7324]
[1758618956014,1.21242196,4223.0,4222.9,0.7324]
[1758618957523,0.89812196,4223.0,4222.9,0.7324]
[1758618957725,1.71607196,4223.0,4222.5,0.1326]
[1758618958029,0.2135,4222.9,4222.8,0.4147]
[1758618958421,0.4233,4222.9,4222.8,0.7324]
[1758618958721,0.7376,4222.9,4222.8,0.7324]
[1758618959427,0.7376,4222.9,4222.8,0.3177]
[1758618959628,0.7376,4222.7,4222.6,0.5263]
[1758618960227,1.21279331,4222.7,4222.6,0.7324]
[1758618960730,1.21279233,4222.7,4222.6,0.7324]
[1758618961127,1.21279233,4222.7,4222.6,0.3177]
[1758618961423,1.21279233,4222.7,4222.0,0.3155]
[1758618961424,0.42602,4222.2,4222.0,0.3155]
[1758618961632,0.2024,4221.9,4221.8,3.4101]
[1758618961825,0.2024,4221.9,4221.8,3.6214]
[1758618962227,0.2024,4221.9,4221.8,3.9369]
[1758618962526,0.511,4223.1,4223.0,0.2023]
[1758618962729,1.18960682,4223.1,4223.0,0.5178]
[1758618963332,0.2024,4222.6,4222.5,0.8619]
[1758618963528,0.4057,4222.6,4222.5,0.8619]
[1758618963731,1.18960682,4222.6,4222.5,0.8619]
[1758618964629,1.18960682,4222.6,4222.5,0.7291]
[1758618964834,1.18960682,4222.6,4222.5,0.5178]
[1758618965730,0.7143,4222.1,4222.0,0.2023]
[1758618965937,0.4057,4221.7,4221.6,0.62838]
[1758618966137,0.7143,4221.7,4221.6,0.7291]
[1758618966434,0.88100682,4221.7,4221.6,0.7291]
[1758618966734,0.67770682,4221.7,4221.6,0.7291]
[1758618966929,0.47530682,4221.7,4221.6,0.7291]
[1758618968329,1.18960682,4221.7,4221.6,0.7291]
[1758618969734,0.88100682,4221.7,4221.6,0.7291]
[1758618969937,0.67770682,4221.7,4221.6,0.7291]
[1758618970134,0.47530682,4221.7,4221.6,0.7291]
[1758618970336,0.47530682,4221.8,4221.6,0.7291]
[1758618970536,0.47530682,4221.8,4221.7,0.7291]
[1758618971738,0.67770682,4221.8,4221.7,0.7291]
[1758618972433,1.18960682,4221.8,4221.7,0.3155]
[1758618972637,1.18960682,4221.8,4220.9,3.2078]
[1758618972638,1.14037,4221.7,4221.6,0.3155]
[1758618972838,1.61567682,4221.7,4221.6,0.3155]
[1758618973034,0.62853,4221.1,4221.0,0.8617]
[1758618973234,1.10383682,4221.1,4221.0,0.8617]
[1758618974443,1.30713682,4221.1,4221.0,0.8617]
[1758618975642,0.42618,4220.6,4220.5,0.4483]
[1758618975838,1.61692101,4220.6,4220.5,0.5178]
[1758618977140,0.42621,4220.4,4220.0,0.1328]
[1758618977345,1.15761,4220.4,4220.3,0.5428]
[1758618977545,1.63366526,4220.4,4220.3,0.5428]
[1758618979042,0.42623,4220.1,4219.9,3.2078]
[1758618979239,0.68365526,4220.0,4219.9,0.7518]
[1758618979948,1.20745526,4220.0,4219.9,0.7518]
[1758618980545,0.90075526,4220.0,4219.9,0.7518]
[1758618985041,0.47605526,4220.0,4219.9,0.7518]
[1758618985343,3.2078,4220.3,4220.0,0.1318]
[1758618985647,3.4154,4220.3,4220.2,0.7518]
[1758618985840,4.10702726,4220.3,4220.2,0.7518]
[1758618986047,4.41372726,4220.3,4220.2,0.7518]
[1758618986644,1.06533,4221.1,4220.0,0.55804]
[1758618986645,3.4154,4220.8,4220.7,0.4279]
[1758618986852,3.88987266,4220.8,4220.7,0.7518]
[1758618987452,0.47447266,4220.8,4220.7,0.7518]
[1758618987651,3.2078,4221.3,4221.0,0.1318]
[1758618987847,0.7314,4221.1,4221.0,0.7518]
[1758618988053,0.7314,4220.7,4220.6,0.5428]
[1758618988244,1.20611327,4220.7,4220.6,0.5428]
[1758618988550,1.20611327,4220.7,4220.6,0.7518]
[1758618988739,0.89941327,4220.7,4220.6,0.7518]
[1758618989643,1.20611327,4220.7,4220.6,0.7518]
[1758618989847,1.20611327,4220.7,4220.6,0.5428]
[1758618990453,0.4247,4220.2,4220.1,0.4279]
[1758618991039,0.2076,4220.2,4220.1,0.7583]
[1758618992752,0.3053,4220.5,4220.2,0.3304]
[1758618993051,0.7214,4220.5,4220.4,0.7596]
[1758618993558,1.196657,4220.5,4220.4,0.7596]
[1758618993749,0.891357,4220.5,4220.4,0.7596]
[1758618996056,1.196657,4220.5,4220.4,0.7596]
[1758618998558,1.19741932,4220.5,4220.4,0.7596]
[1758619000457,0.47601932,4220.5,4220.4,0.7596]
[1758619000756,0.42612,4221.2,4220.4,0.7596]
[1758619000757,0.42612,4221.2,4220.6,0.3304]
[1758619000944,1.14752,4221.2,4221.1,0.2083]
[1758619001148,0.2135,4220.6,4220.5,0.5607]
[1758619001350,0.89161541,4220.6,4220.5,0.8911]
[1758619001550,1.19691541,4220.6,4220.5,0.8911]
[1758619001962,1.19691541,4220.6,4220.1,3.63403]
[1758619002157,0.7214,4220.3,4220.2,0.5387]
[1758619002352,1.19691541,4220.3,4220.2,0.5387]
[1758619003857,0.7214,4220.2,4220.1,3.2078]
[1758619004052,1.19691541,4220.2,4220.1,3.2078]
[1758619004960,1.62314541,4220.2,4219.9,0.3304]
[1758619005264,0.7214,4219.7,4219.6,0.7596]
[1758619005454,1.19691541,4219.7,4219.6,0.7596]
[1758619009555,0.3053,4219.6,4219.3,0.3304]
[1758619009761,0.7214,4219.3,4219.2,0.64722]
[1758619009961,0.89161541,4219.3,4219.2,0.85552]
[1758619010162,0.89161541,4219.3,4219.2,1.18592]
[1758619011862,0.89161541,4219.3,4218.2,3.2078]
[1758619011863,0.4161,4218.9,4218.2,3.2078]
[1758619012066,0.4161,4218.9,4218.8,1.18596]
[1758619012372,0.2135,4218.9,4218.8,1.18596]
[1758619012561,0.68975754,4218.9,4218.8,1.18596]
[1758619013567,1.19765754,4218.9,4218.8,1.18596]
[1758619014285,1.19765754,4218.9,4218.8,0.75676]
[1758619014873,1.19765754,4218.9,4218.7,3.2078]
[1758619014874,0.3053,4218.8,4218.7,3.2078]
[1758619015185,0.7214,4218.7,4218.6,0.5387]
[1758619015383,1.19765754,4218.7,4218.6,0.5387]
[1758619020386,1.19765754,4218.7,4218.6,0.7596]
[1758619021686,0.47625754,4218.7,4218.6,0.7596]
[1758619021893,1.22505754,4218.7,4218.6,0.7596]
[1758619022078,1.22505754,4218.7,4218.6,0.5387]
[1758619023387,1.22505754,4218.7,4218.6,0.7544]
[1758619023784,0.91185754,4218.7,4218.6,0.7544]
[1758619023987,1.22505754,4218.7,4218.6,0.7544]
[1758619025482,1.22505754,4218.7,4218.6,0.5387]
[1758619027491,1.22505754,4218.7,4218.6,0.7544]
[1758619027693,0.91185754,4218.7,4218.6,0.7544]
[1758619029094,1.22505754,4218.7,4218.6,0.7544]
[1758619030494,1.22505754,4218.7,4218.6,0.5387]
[1758619033391,1.22505754,4218.7,4218.6,0.7544]
[1758619033595,0.47625754,4218.7,4218.6,0.7544]
[1758619033893,3.2078,4219.6,4218.6,0.7544]
[1758619033894,0.42625,4219.9,4219.7,0.321]
[1758619034204,0.64455,4219.9,4219.8,0.7561]
[1758619034488,1.17505,4219.9,4219.8,0.7561]
[1758619034686,0.4356,4219.9,4219.8,0.7561]
[1758619034885,0.42625,4220.0,4219.8,0.7561]
[1758619035184,0.2183,4220.1,4220.0,0.8859]
[1758619035591,0.7488,4220.1,4220.0,0.7561]
[1758619036396,0.2183,4220.1,4220.0,0.8859]
[1758619038192,0.3132,4220.4,4220.1,0.3194]
[1758619038389,0.6405,4220.4,4220.3,0.7421]
[1758619039390,0.2143,4220.4,4220.3,0.7421]
[1758619041293,3.2078,4220.6,4220.3,0.7421]
[1758619041495,0.7604,4221.4,4221.3,0.7421]
[1758619041705,0.429,4221.4,4221.3,0.7421]
[1758619041899,1.1865,4221.4,4221.3,0.7421]
[1758619042194,0.7604,4221.4,4221.3,0.7421]
[1758619042389,0.429,4221.4,4221.3,0.7421]
[1758619042589,0.2143,4221.4,4221.3,0.7421]
[1758619044192,3.4221,4221.6,4221.5,0.1344]
[1758619044392,3.4221,4221.6,4221.5,0.8765]
[1758619044592,0.3314,4222.0,4221.5,0.8765]
[1758619044794,0.429,4222.0,4221.9,0.4227]
[1758619045092,0.7604,4222.0,4221.9,0.7421]
[1758619045394,0.42606,4221.8,4221.5,0.1344]
[1758619045590,1.18646,4221.8,4221.7,0.5378]
[1758619045798,0.7604,4221.4,4221.3,3.9499]
[1758619045993,1.1865,4221.4,4221.3,3.9499]
[1758619046198,0.42612,4221.2,4221.1,0.2184]
[1758619046498,0.2143,4220.6,4220.5,4.0843]
[1758619046892,0.7604,4220.6,4220.5,4.0843]
[1758619047291,0.7604,4220.6,4220.0,0.1298]
[1758619047292,0.429,4220.1,4220.0,0.8719]
[1758619047795,0.7604,4220.1,4220.0,0.8719]
[1758619047994,0.7604,4220.1,4220.0,0.7421]
[1758619048197,0.429,4220.1,4220.0,0.8765]
[1758619048502,0.7604,4220.1,4220.0,0.8765]
[1758619049003,0.7604,4220.1,4220.0,0.7421]
[1758619049705,0.7604,4220.1,4220.0,0.3194]
[1758619049897,0.7604,4220.1,4220.0,0.5378]
[1758619050098,0.85527,4219.7,4219.6,0.3194]
[1758619050298,1.18669,4219.5,4219.4,0.2184]
[1758619051195,1.23460455,4219.5,4219.4,0.7451]
[1758619052599,0.429,4219.5,4219.4,0.7451]
[1758619052800,0.2143,4219.5,4219.4,0.7451]
[1758619053505,0.68858937,4219.5,4219.4,0.7451]
[1758619054207,0.90568937,4219.5,4219.4,0.7451]
[1758619054405,0.4224,4219.1,4219.0,0.3451]
[1758619054610,1.21253303,4219.1,4219.0,0.8718]
[1758619055412,0.89683303,4219.1,4219.0,0.8718]
[1758619056901,1.21253303,4219.1,4219.0,0.515]
[1758619059012,0.439,4219.0,4218.9,3.2078]
[1758619059210,1.33583303,4219.0,4218.9,0.3043]
[1758619059807,0.4224,4218.7,4218.6,0.515]
[1758619060004,0.7381,4218.7,4218.6,0.515]
[1758619060205,0.89683303,4218.7,4218.6,0.7374]
[1758619063512,0.7381,4218.7,4218.6,0.7374]
[1758619064119,0.7381,4218.7,4218.6,0.515]
[1758619064823,1.21249394,4218.7,4218.6,0.515]
[1758619065922,0.89679394,4218.7,4218.6,0.7374]
[1758619066308,0.89679394,4218.7,4217.9,0.53870876]
[1758619066309,0.2053,4218.0,4217.9,0.53870876]
[1758619066510,0.7381,4218.0,4217.9,0.53870876]
[1758619067011,0.7381,4218.0,4217.9,0.76110876]
[1758619067209,0.7381,4218.0,4217.5,0.1344]
[1758619067408,0.7381,4218.0,4216.6,3.6409]
[1758619067409,0.2053,4216.7,4216.6,3.6409]
[1758619067621,0.7381,4216.7,4216.6,0.4331]
[1758619067923,0.7381,4216.2,4216.1,0.4331]
[1758619068712,0.7381,4216.2,4216.1,0.2107]
[1758619068914,0.84903,4216.2,4215.6,3.2078]
[1758619069120,0.7381,4216.1,4216.0,0.2107]
[1758619069719,0.7381,4216.1,4216.0,0.515]
[1758619070719,0.7381,4216.1,4216.0,0.7374]
[1758619070918,0.2053,4216.1,4216.0,0.8642]
[1758619071617,0.4224,4216.1,4216.0,0.8642]
[1758619071818,0.7381,4216.1,4216.0,0.8642]
[1758619072621,0.9841,4216.1,4216.0,0.8642]
[1758619072822,0.6684,4216.1,4216.0,0.8642]
[1758619073014,0.7381,4216.1,4216.0,0.8642]
[1758619073209,0.9841,4216.1,4216.0,0.8642]
[1758619073826,0.6684,4216.1,4216.0,0.8642]
[1758619074018,0.246,4216.1,4216.0,0.8642]
[1758619074918,3.4131,4216.5,4216.4,0.4331]
[1758619075126,3.4131,4216.5,4216.4,0.7374]
[1758619075424,3.6591,4216.5,4216.4,0.7374]
[1758619075627,3.4538,4216.5,4216.4,0.7374]
[1758619077425,0.246,4216.5,4216.4,0.7374]
[1758619078021,0.4513,4216.5,4216.4,0.7374]
[1758619078425,0.3157,4216.8,4216.5,0.1268]
[1758619078628,0.2053,4216.8,4216.7,0.7374]
[1758619078823,0.4513,4216.8,4216.7,0.7374]
[1758619079122,0.9841,4216.8,4216.7,0.7374]
[1758619079426,0.6684,4216.8,4216.7,0.7374]
[1758619080228,3.2078,4217.2,4217.1,0.7374]
[1758619080729,3.9503,4217.8,4217.7,0.7331]
[1758619080916,0.3093,4217.7,4217.1,0.3239]
[1758619081112,0.7425,4217.2,4217.1,0.7331]
[1758619081315,0.9885,4217.2,4217.1,0.7331]
[1758619081726,3.2078,4217.8,4217.5,0.8608]
[1758619082027,3.2078,4217.8,4217.6,0.5315]
[1758619082028,1.41497,4217.7,4217.6,0.5315]
[1758619082216,1.88789169,4217.7,4217.1,0.3239]
[1758619082418,0.7425,4217.2,4217.1,0.5315]
[1758619082727,0.9885,4217.2,4217.1,0.5315]
[1758619085325,0.3093,4217.1,4216.7,0.3239]
[1758619085518,0.7425,4216.8,4216.7,0.5315]
[1758619085725,0.9885,4216.8,4216.7,0.2076]
[1758619086024,0.2218,4216.5,4216.4,0.3239]
[1758619086230,0.7425,4216.5,4216.4,0.5315]
[1758619086528,0.8668,4216.5,4216.4,0.5315]
[1758619087027,0.7425,4216.5,4216.4,0.5315]
[1758619088023,0.7425,4216.5,4216.4,0.7331]
[1758619089128,1.21666617,4216.5,4216.4,0.7331]
[1758619094722,0.69596617,4216.5,4216.4,0.7331]
[1758619095028,0.7425,4217.2,4217.1,0.7331]
[1758619095227,1.46519407,4217.2,4217.1,0.7331]
[1758619095527,1.46519407,4217.2,4217.1,0.5315]
[1758619095734,1.46519407,4217.2,4216.6,0.3239]
[1758619095930,0.2218,4216.7,4216.6,0.7331]
[1758619096228,0.94449407,4216.7,4216.6,1.15968]
[1758619096733,0.69849407,4216.7,4216.6,1.15968]
[1758619096923,0.47669407,4216.7,4216.6,8.60463999]
[1758619097126,0.2218,4217.4,4217.3,0.3239]
[1758619097325,0.3798,4217.4,4217.3,0.7331]
[1758619098033,0.9005,4217.4,4217.3,0.7331]
[1758619098225,0.9005,4217.4,4216.9,0.3239]
[1758619098431,0.2114,4217.0,4216.9,1.15965]
[1758619098634,0.7425,4217.0,4216.9,1.15965]
[1758619098835,0.4332,4217.0,4216.9,1.15965]
[1758619099132,0.7425,4217.6,4217.5,0.5315]
[1758619099335,0.9885,4217.6,4217.5,0.5315]
[1758619101037,3.2078,4217.7,4217.5,0.96339]
[1758619101237,3.2078,4217.7,4217.6,0.7331]
[1758619101438,3.4538,4217.7,4217.6,0.7331]
[1758619101734,3.6756,4217.7,4217.6,0.7331]
[1758619102327,3.4296,4217.7,4217.6,0.7331]
[1758619102636,3.6756,4217.7,4217.6,0.7331]
[1758619103132,3.2078,4217.7,4217.6,0.7331]
[1758619103434,0.246,4217.7,4217.6,0.7331]
[1758619104540,0.4678,4217.7,4217.6,0.7331]
[1758619105642,0.9885,4217.7,4217.6,0.7331]
[1758619107245,0.9885,4217.7,4217.1,3.2078]
[1758619107438,0.5311,4217.2,4217.1,4.36742]
[1758619107644,0.9885,4217.2,4217.1,0.2076]
[1758619107962,0.7425,4217.1,4217.0,0.5315]
[1758619109044,1.21775634,4217.1,4217.0,0.5315]
[1758619109249,1.21775634,4217.1,4217.0,0.7331]
[1758619110147,0.90845634,4217.1,4217.0,0.8608]
[1758619110345,1.15445634,4217.1,4217.0,0.8608]
[1758619110544,0.47525634,4217.1,4217.0,0.8608]
[1758619110846,0.72125634,4217.1,4217.0,0.8608]
[1758619111934,0.47525634,4217.1,4217.0,0.8608]
[1758619112135,0.72125634,4217.1,4217.0,0.8608]
[1758619113440,1.45655634,4217.1,4217.0,0.2076]
[1758619113638,0.7353,4216.7,4216.4,0.3256]
[1758619113842,0.5236,4216.5,4216.4,0.5456]
[1758619114042,1.21055634,4216.5,4216.4,0.7497]
[1758619114950,0.72125634,4216.5,4216.4,0.7497]
[1758619115146,1.45655634,4216.5,4216.4,0.7497]
[1758619116759,0.93295634,4216.5,4216.4,0.7497]
[1758619116955,0.47525634,4216.5,4216.4,0.7497]
[1758619117143,0.72125634,4216.5,4216.4,0.7497]
[1758619117346,0.93295634,4216.5,4216.4,0.7497]
[1758619118754,1.45655634,4216.5,4216.4,0.7497]
[1758619119854,1.15455634,4216.5,4216.4,0.7497]
[1758619121048,0.93295634,4216.5,4216.4,0.7497]
[1758619121248,1.23495634,4216.5,4216.4,0.7497]
[1758619121450,1.45655634,4216.5,4216.4,0.7497]
[1758619121655,1.21055634,4216.5,4216.4,0.7497]
[1758619121855,1.45655634,4216.5,4216.4,0.7497]
[1758619122756,1.58855634,4216.5,4216.4,0.5456]
[1758619123054,1.58855634,4216.5,4216.4,0.22]
[1758619123256,1.58855634,4216.5,4216.4,0.5456]
[1758619123848,1.15455634,4216.5,4216.4,0.7497]
[1758619124250,0.72125634,4216.5,4216.4,0.7497]
[1758619127256,1.45655634,4216.5,4216.4,0.7497]
[1758619127562,1.15455634,4216.5,4216.4,0.7497]
[1758619130263,0.47525634,4216.5,4216.4,0.7497]
[1758619130558,0.93295634,4216.5,4216.4,0.7497]
[1758619132964,0.72125634,4216.5,4216.4,0.7497]
[1758619133771,0.47525634,4216.5,4216.4,0.7497]
[1758619134468,0.47525634,4216.5,4216.4,4.7497]
[1758619134668,0.246,4216.8,4216.7,0.7497]
[1758619134871,0.246,4216.8,4216.7,4.38407]
[1758619135078,0.72119245,4216.8,4216.7,4.38407]
[1758619135472,0.47519245,4216.8,4216.7,4.38407]
[1758619135966,1.21049245,4216.8,4216.7,3.9575]
[1758619136580,0.68689245,4216.8,4216.7,3.9575]
[1758619136969,1.21049245,4216.8,4216.7,3.9575]
[1758619137872,0.90849245,4216.8,4216.7,3.9575]
[1758619139178,1.21049245,4216.8,4216.7,3.9575]
[1758619140775,0.68689245,4216.8,4216.7,3.9575]
[1758619141779,0.47519245,4216.8,4216.7,3.9575]
[1758619142882,0.68079245,4216.8,4216.7,3.9575]
[1758619143079,1.19469245,4216.8,4216.7,3.9575]
[1758619143682,0.88659245,4216.8,4216.7,3.9575]
[1758619144179,1.19469245,4216.8,4216.7,3.9575]
[1758619145486,1.19469245,4216.8,4216.7,3.7534]
[1758619145677,0.98909245,4216.8,4216.7,3.9615]
[1758619145883,0.47519245,4216.8,4216.7,3.9615]
[1758619146382,0.68079245,4216.8,4216.7,3.9615]
[1758619149783,1.21029245,4216.8,4216.7,3.9615]
[1758619151182,0.47519245,4216.8,4216.7,3.9615]
[1758619155186,0.67959245,4216.8,4216.7,3.9615]
[1758619155482,1.20909245,4216.8,4216.7,2.9615]
[1758619155679,1.20909245,4216.8,4216.7,3.1836]
[1758619156485,1.20909245,4216.8,4216.7,0.7558]
[1758619156986,1.20909245,4216.8,4216.7,0.2221]
[1758619157179,1.29469,4216.5,4216.4,0.2221]
[1758619157483,1.76988245,4216.5,4216.4,0.5365]
[1758619157784,1.76988245,4216.5,4216.4,0.7485]
[1758619159084,1.76988245,4216.5,4216.4,0.4341]
[1758619159280,1.76988245,4216.5,4216.4,0.2221]
[1758619162586,1.76988245,4216.5,4216.2,3.2078]
[1758619162587,0.7339,4216.3,4216.2,3.4299]
[1758619162787,1.45409245,4216.3,4216.2,3.2078]
[1758619163881,1.45409245,4216.3,4216.2,3.7443]
[1758619165189,1.45409245,4216.3,4216.2,3.9563]
[1758619167182,0.47519245,4216.3,4216.2,3.9563]
[1758619167492,4.36822,4217.2,4217.1,0.7485]
[1758619167702,5.03806397,4217.2,4217.1,0.7485]
[1758619168190,4.61154397,4217.2,4217.1,0.7485]
[1758619168696,4.61154397,4217.2,4217.1,0.4341]
[1758619168993,0.7339,4216.8,4216.7,0.2221]
[1758619169185,1.20874397,4216.8,4216.7,0.2221]
[1758619169390,0.88184397,4216.8,4216.7,0.7485]
[1758619169892,1.20874397,4216.8,4216.7,0.7485]
[1758619170990,1.45374397,4216.8,4216.7,0.7485]
[1758619173194,1.45374397,4216.8,4216.7,0.4341]
[1758619173591,0.541,4216.5,4216.4,0.5204]
[1758619173890,1.33274397,4216.5,4216.4,0.5204]
[1758619174194,1.33274397,4216.5,4216.4,0.7378]
[1758619178293,0.5245,4216.4,4216.3,0.2045]
[1758619178599,1.44674397,4216.4,4216.3,0.2045]
[1758619178991,1.44674397,4216.4,4216.3,0.5204]
[1758619179494,1.44674397,4216.4,4216.3,0.7378]
[1758619181699,0.7269,4216.3,4216.2,3.37222]
[1758619181898,1.20174397,4216.3,4216.2,3.37222]
[1758619182199,1.20174397,4216.3,4216.2,2.9456]
[1758619185393,0.79174397,4216.3,4216.2,2.9456]